[Event "*** SCC Grand Prix: Titled Tuesday Blitz"]
[Site "Chess.com"]
[Date "2020.06.23"]
[Round "3"]
[White "elamier"]
[Black "RestartingChess"]
[Result "1-0"]
[WhiteElo "2318"]
[BlackElo "2441"]
[TimeControl "180+1"]
[EndTime "10:29:41 PDT"]
[Termination "elamier won by checkmate"]

1. d4 {[%clk 0:03:00.9]} 1... Nf6 {[%clk 0:02:59.4]} 2. Bg5 {[%clk 0:03:01.2]}
2... h6 {[%clk 0:02:58.9]} 3. Bxf6 {[%clk 0:03:01.2]} 3... exf6 {[%clk
0:02:59.8]} 4. e3 {[%clk 0:03:01]} 4... d5 {[%clk 0:03:00.1]} 5. c4 {[%clk
0:03:00.4]} 5... c6 {[%clk 0:03:00.5]} 6. cxd5 {[%clk 0:02:59.6]} 6... Qxd5
{[%clk 0:02:58.5]} 7. Nc3 {[%clk 0:02:54.8]} 7... Bb4 {[%clk 0:02:58.9]} 8. Ne2
{[%clk 0:02:49.9]} 8... Bg4 {[%clk 0:02:53.4]} 9. a3 {[%clk 0:02:28.8]} 9...
Bxc3+ {[%clk 0:02:36.7]} 10. Nxc3 {[%clk 0:02:25.4]} 10... Qh5 {[%clk
0:02:32.6]} 11. Be2 {[%clk 0:02:22.3]} 11... Bxe2 {[%clk 0:02:32.1]} 12. Qxe2
{[%clk 0:02:22]} 12... Qg6 {[%clk 0:02:32.8]} 13. O-O {[%clk 0:02:19.7]} 13...
O-O {[%clk 0:02:33.5]} 14. b4 {[%clk 0:02:18.6]} 14... Nd7 {[%clk 0:02:33]} 15.
Rac1 {[%clk 0:02:11.2]} 15... Rfe8 {[%clk 0:02:33.5]} 16. b5 {[%clk 0:02:05]}
16... cxb5 {[%clk 0:02:28]} 17. Nxb5 {[%clk 0:01:49.3]} 17... Rec8 {[%clk
0:02:21.6]} 18. Nd6 {[%clk 0:01:47.2]} 18... Rxc1 {[%clk 0:02:11.3]} 19. Rxc1
{[%clk 0:01:47.7]} 19... b6 {[%clk 0:02:10.7]} 20. Qb5 {[%clk 0:01:46]} 20...
Nf8 {[%clk 0:02:03.4]} 21. Qf5 {[%clk 0:01:41.7]} 21... Rd8 {[%clk 0:01:55]} 22.
Qxg6 {[%clk 0:01:32.7]} 22... Nxg6 {[%clk 0:01:55.9]} 23. Nb5 {[%clk 0:01:32.7]}
23... Rd5 {[%clk 0:01:52.7]} 24. Nxa7 {[%clk 0:01:28]} 24... Ra5 {[%clk
0:01:52.2]} 25. Nc8 {[%clk 0:01:27.6]} 25... b5 {[%clk 0:01:49.8]} 26. Nd6
{[%clk 0:01:25.5]} 26... Ne7 {[%clk 0:01:46.6]} 27. Rb1 {[%clk 0:01:24.7]} 27...
Rxa3 {[%clk 0:01:44.1]} 28. g3 {[%clk 0:01:19.8]} 28... Nd5 {[%clk 0:01:40.4]}
29. Rxb5 {[%clk 0:01:18]} 29... Ra1+ {[%clk 0:01:40.7]} 30. Kg2 {[%clk
0:01:16.6]} 30... Nc3 {[%clk 0:01:41.3]} 31. Rb8+ {[%clk 0:01:15.7]} 31... Kh7
{[%clk 0:01:41.8]} 32. Nxf7 {[%clk 0:01:15.6]} 32... Ra2 {[%clk 0:01:42.5]} 33.
h4 {[%clk 0:01:05.2]} 33... Nd1 {[%clk 0:01:40.9]} 34. h5 {[%clk 0:01:04.9]}
34... g6 {[%clk 0:01:35.7]} 35. Rb7 {[%clk 0:00:55.5]} 35... Rxf2+ {[%clk
0:01:22.7]} 36. Kg1 {[%clk 0:00:50.6]} 36... gxh5 {[%clk 0:01:20.9]} 37. d5
{[%clk 0:00:26]} 37... Rd2 {[%clk 0:01:17.2]} 38. d6 {[%clk 0:00:25.8]} 38...
Nxe3 {[%clk 0:00:44.6]} 39. d7 {[%clk 0:00:25.3]} 39... Kg6 {[%clk 0:00:28.1]}
40. d8=Q {[%clk 0:00:23.7]} 40... Rxd8 {[%clk 0:00:28.6]} 41. Nxd8 {[%clk
0:00:23.5]} 41... Kf5 {[%clk 0:00:28.4]} 42. Nf7 {[%clk 0:00:19.9]} 42... Kg6
{[%clk 0:00:19.6]} 43. Nd6 {[%clk 0:00:19.2]} 43... Ng4 {[%clk 0:00:15]} 44. Rb6
{[%clk 0:00:18.3]} 44... Kg5 {[%clk 0:00:14.5]} 45. Ne4+ {[%clk 0:00:15.2]}
45... Kf5 {[%clk 0:00:14.7]} 46. Nf2 {[%clk 0:00:14.9]} 46... Ne5 {[%clk
0:00:14.4]} 47. Kg2 {[%clk 0:00:14.5]} 47... Nd7 {[%clk 0:00:11.5]} 48. Rb5+
{[%clk 0:00:13.4]} 48... Ne5 {[%clk 0:00:11.8]} 49. Nd3 {[%clk 0:00:12.9]} 49...
Ke4 {[%clk 0:00:12.3]} 50. Nxe5 {[%clk 0:00:13]} 50... fxe5 {[%clk 0:00:13.2]}
51. Rb6 {[%clk 0:00:12.8]} 51... Kf5 {[%clk 0:00:13.8]} 52. Rxh6 {[%clk
0:00:13]} 52... e4 {[%clk 0:00:14.7]} 53. Rxh5+ {[%clk 0:00:13]} 53... Kg4
{[%clk 0:00:15.2]} 54. Rh8 {[%clk 0:00:13.4]} 54... e3 {[%clk 0:00:15.6]} 55.
Re8 {[%clk 0:00:13.6]} 55... Kf5 {[%clk 0:00:16.5]} 56. Rxe3 {[%clk 0:00:13.8]}
56... Kg4 {[%clk 0:00:17.4]} 57. Kf2 {[%clk 0:00:13.4]} 57... Kf5 {[%clk
0:00:17.9]} 58. Kf3 {[%clk 0:00:13.6]} 58... Kg5 {[%clk 0:00:18.4]} 59. g4
{[%clk 0:00:13.7]} 59... Kf6 {[%clk 0:00:19.3]} 60. Kf4 {[%clk 0:00:13.9]} 60...
Kg6 {[%clk 0:00:18.4]} 61. g5 {[%clk 0:00:14.1]} 61... Kh5 {[%clk 0:00:18.9]}
62. Kf5 {[%clk 0:00:12.9]} 62... Kh4 {[%clk 0:00:18.5]} 63. Rd3 {[%clk 0:00:13]}
63... Kh5 {[%clk 0:00:18.1]} 64. Rh3# {[%clk 0:00:13.5]} 1-0

[Event "*** SCC Grand Prix: Titled Tuesday Blitz"]
[Site "Chess.com"]
[Date "2020.06.23"]
[Round "3"]
[White "KobyKalavannan"]
[Black "GuerrieroFromLevant"]
[Result "0-1"]
[WhiteElo "2645"]
[BlackElo "2430"]
[TimeControl "180+1"]
[EndTime "10:29:42 PDT"]
[Termination "GuerrieroFromLevant won by checkmate"]

1. d4 {[%clk 0:03:00.9]} 1... d5 {[%clk 0:02:57.8]} 2. Nf3 {[%clk 0:03:01]} 2...
c5 {[%clk 0:02:55.9]} 3. dxc5 {[%clk 0:02:59.3]} 3... e6 {[%clk 0:02:54.9]} 4.
c4 {[%clk 0:02:58]} 4... Bxc5 {[%clk 0:02:52.6]} 5. cxd5 {[%clk 0:02:58.2]} 5...
exd5 {[%clk 0:02:53.5]} 6. Nc3 {[%clk 0:02:50.6]} 6... Nf6 {[%clk 0:02:52.2]} 7.
e3 {[%clk 0:02:43.4]} 7... Nc6 {[%clk 0:02:50.8]} 8. Bb5 {[%clk 0:02:41.1]} 8...
O-O {[%clk 0:02:50.5]} 9. O-O {[%clk 0:02:41.4]} 9... Bg4 {[%clk 0:02:49.8]} 10.
h3 {[%clk 0:02:41.6]} 10... Bh5 {[%clk 0:02:49.9]} 11. Be2 {[%clk 0:02:41.1]}
11... Re8 {[%clk 0:02:47.2]} 12. Nb5 {[%clk 0:02:31.2]} 12... Ne4 {[%clk
0:02:41.4]} 13. Nbd4 {[%clk 0:02:26.6]} 13... Qb6 {[%clk 0:02:40.1]} 14. Nb3
{[%clk 0:02:19.1]} 14... Rad8 {[%clk 0:02:27]} 15. Nxc5 {[%clk 0:02:18.3]} 15...
Qxc5 {[%clk 0:02:27.1]} 16. Nd4 {[%clk 0:02:19]} 16... Nxd4 {[%clk 0:02:15.8]}
17. Bxh5 {[%clk 0:02:13.7]} 17... Nc6 {[%clk 0:02:13.4]} 18. b3 {[%clk
0:01:53.2]} 18... Nc3 {[%clk 0:01:58]} 19. Qg4 {[%clk 0:01:00.2]} 19... d4
{[%clk 0:01:35.7]} 20. exd4 {[%clk 0:00:54.5]} 20... Rxd4 {[%clk 0:01:35.3]} 21.
Qf3 {[%clk 0:00:40.2]} 21... Ne5 {[%clk 0:01:08.3]} 22. Qg3 {[%clk 0:00:31.3]}
22... Ng6 {[%clk 0:00:52.2]} 23. Be3 {[%clk 0:00:29.4]} 23... Qxh5 {[%clk
0:00:50.5]} 24. Qc7 {[%clk 0:00:25.1]} 24... Ne2+ {[%clk 0:00:41]} 25. Kh1
{[%clk 0:00:25.2]} 25... Rde4 {[%clk 0:00:40.2]} 26. Qxb7 {[%clk 0:00:21.9]}
26... Rxe3 {[%clk 0:00:35.3]} 27. fxe3 {[%clk 0:00:22.8]} 27... Ng3+ {[%clk
0:00:35.6]} 28. Kh2 {[%clk 0:00:22.5]} 28... Nxf1+ {[%clk 0:00:35.6]} 29. Rxf1
{[%clk 0:00:23.4]} 29... Qe5+ {[%clk 0:00:36]} 30. Kh1 {[%clk 0:00:23.5]} 30...
Qe7 {[%clk 0:00:32.9]} 31. Qd5 {[%clk 0:00:21.7]} 31... Qe6 {[%clk 0:00:30.2]}
32. Qb7 {[%clk 0:00:20.5]} 32... f6 {[%clk 0:00:25]} 33. Qxa7 {[%clk 0:00:20.5]}
33... Qxe3 {[%clk 0:00:25.4]} 34. Qa4 {[%clk 0:00:20.7]} 34... Qe4 {[%clk
0:00:20.3]} 35. Qd7 {[%clk 0:00:19.8]} 35... Nh4 {[%clk 0:00:18]} 36. Rg1 {[%clk
0:00:19.7]} 36... Nf5 {[%clk 0:00:17.7]} 37. Qc7 {[%clk 0:00:15.3]} 37... Qe5
{[%clk 0:00:17.1]} 38. Qxe5 {[%clk 0:00:13.9]} 38... fxe5 {[%clk 0:00:17.6]} 39.
Re1 {[%clk 0:00:12.8]} 39... e4 {[%clk 0:00:18]} 40. g4 {[%clk 0:00:12.9]} 40...
Nd4 {[%clk 0:00:18.2]} 41. Kg2 {[%clk 0:00:13]} 41... e3 {[%clk 0:00:18.4]} 42.
b4 {[%clk 0:00:12.4]} 42... Nc2 {[%clk 0:00:17.9]} 43. Re2 {[%clk 0:00:12.1]}
43... Nxb4 {[%clk 0:00:18.1]} 44. Kf3 {[%clk 0:00:12.7]} 44... Nd5 {[%clk
0:00:18.3]} 45. a4 {[%clk 0:00:12.5]} 45... Rf8+ {[%clk 0:00:18.7]} 46. Kg3
{[%clk 0:00:12.6]} 46... Ra8 {[%clk 0:00:18.2]} 47. Rc2 {[%clk 0:00:07.5]} 47...
Rxa4 {[%clk 0:00:17.7]} 48. Rc5 {[%clk 0:00:07.4]} 48... Re4 {[%clk 0:00:17.2]}
49. Rc1 {[%clk 0:00:04.5]} 49... e2 {[%clk 0:00:17.6]} 50. Re1 {[%clk
0:00:04.8]} 50... Re3+ {[%clk 0:00:18.3]} 51. Kf2 {[%clk 0:00:05.1]} 51... Kf7
{[%clk 0:00:19]} 52. Rxe2 {[%clk 0:00:05.2]} 52... Rxe2+ {[%clk 0:00:19.6]} 53.
Kxe2 {[%clk 0:00:06.1]} 53... Nf4+ {[%clk 0:00:20.2]} 54. Kf3 {[%clk 0:00:05.3]}
54... Nxh3 {[%clk 0:00:21.1]} 55. Kg3 {[%clk 0:00:04.4]} 55... Ng5 {[%clk
0:00:22]} 56. Kf4 {[%clk 0:00:05]} 56... Kg6 {[%clk 0:00:22.8]} 57. Ke5 {[%clk
0:00:04.3]} 57... h6 {[%clk 0:00:23.7]} 58. Kf4 {[%clk 0:00:04.7]} 58... Nf7
{[%clk 0:00:24.6]} 59. Kf3 {[%clk 0:00:04.9]} 59... Kf6 {[%clk 0:00:25.5]} 60.
Kf4 {[%clk 0:00:05.3]} 60... g5+ {[%clk 0:00:26.4]} 61. Ke4 {[%clk 0:00:05.9]}
61... Ne5 {[%clk 0:00:27]} 62. Kd5 {[%clk 0:00:06.4]} 62... Nxg4 {[%clk
0:00:27.8]} 63. Kd6 {[%clk 0:00:07.3]} 63... h5 {[%clk 0:00:28.4]} 64. Kd7
{[%clk 0:00:08.2]} 64... h4 {[%clk 0:00:29.3]} 65. Ke8 {[%clk 0:00:09.1]} 65...
h3 {[%clk 0:00:30.2]} 66. Kf8 {[%clk 0:00:10]} 66... h2 {[%clk 0:00:31.1]} 67.
Kg8 {[%clk 0:00:10.9]} 67... h1=Q {[%clk 0:00:31.3]} 68. Kf8 {[%clk 0:00:11.7]}
68... Qa8# {[%clk 0:00:31]} 0-1

[Event "*** SCC Grand Prix: Titled Tuesday Blitz"]
[Site "Chess.com"]
[Date "2020.06.23"]
[Round "3"]
[White "ChessMavenYeti"]
[Black "AndrewDGreen"]
[Result "1-0"]
[WhiteElo "2095"]
[BlackElo "2310"]
[TimeControl "180+1"]
[EndTime "10:29:42 PDT"]
[Termination "ChessMavenYeti won on time"]

1. Nf3 {[%clk 0:03:00.9]} 1... c5 {[%clk 0:02:59.5]} 2. d4 {[%clk 0:02:58.1]}
2... cxd4 {[%clk 0:02:58.7]} 3. c3 {[%clk 0:02:57.8]} 3... dxc3 {[%clk
0:02:56.2]} 4. Nxc3 {[%clk 0:02:57.2]} 4... Nc6 {[%clk 0:02:55.9]} 5. e4 {[%clk
0:02:56.7]} 5... d6 {[%clk 0:02:34.4]} 6. Bc4 {[%clk 0:02:55.4]} 6... a6 {[%clk
0:02:25.9]} 7. O-O {[%clk 0:02:52.7]} 7... Nf6 {[%clk 0:02:17.8]} 8. Be3 {[%clk
0:02:41.8]} 8... Bg4 {[%clk 0:02:15.3]} 9. Qb3 {[%clk 0:02:40.9]} 9... e6 {[%clk
0:02:09.7]} 10. Qxb7 {[%clk 0:02:39.8]} 10... Na5 {[%clk 0:02:04.3]} 11. Qb4
{[%clk 0:02:26.1]} 11... Nxc4 {[%clk 0:01:47.4]} 12. Qxc4 {[%clk 0:02:24.6]}
12... Bxf3 {[%clk 0:01:45.5]} 13. gxf3 {[%clk 0:02:22.3]} 13... Be7 {[%clk
0:01:44.6]} 14. Qc6+ {[%clk 0:02:20.4]} 14... Nd7 {[%clk 0:01:37.3]} 15. Bb6
{[%clk 0:02:19.1]} 15... Qc8 {[%clk 0:01:28]} 16. Qa4 {[%clk 0:02:08.5]} 16...
O-O {[%clk 0:01:24.1]} 17. Be3 {[%clk 0:02:06.9]} 17... Ne5 {[%clk 0:01:18.2]}
18. Kg2 {[%clk 0:01:56]} 18... Qc4 {[%clk 0:01:12.4]} 19. Qxc4 {[%clk
0:01:49.2]} 19... Nxc4 {[%clk 0:01:13.3]} 20. b3 {[%clk 0:01:48.9]} 20... Ne5
{[%clk 0:00:46.2]} 21. Rfd1 {[%clk 0:01:39.3]} 21... Rac8 {[%clk 0:00:46]} 22.
Rac1 {[%clk 0:01:38.4]} 22... Rc6 {[%clk 0:00:45.6]} 23. Na4 {[%clk 0:01:37.6]}
23... Rfc8 {[%clk 0:00:44.4]} 24. Nb6 {[%clk 0:01:34.6]} 24... Rxc1 {[%clk
0:00:41.3]} 25. Rxc1 {[%clk 0:01:34.1]} 25... Rxc1 {[%clk 0:00:41.4]} 26. Bxc1
{[%clk 0:01:33.6]} 26... f5 {[%clk 0:00:37.8]} 27. Nc8 {[%clk 0:01:32.1]} 27...
Bf8 {[%clk 0:00:34.4]} 28. Ba3 {[%clk 0:01:30.8]} 28... d5 {[%clk 0:00:29.4]}
29. Bb2 {[%clk 0:01:15.5]} 29... Nd3 {[%clk 0:00:28.2]} 30. Bc3 {[%clk
0:01:11.3]} 30... fxe4 {[%clk 0:00:26.7]} 31. fxe4 {[%clk 0:01:10.5]} 31... dxe4
{[%clk 0:00:26.6]} 32. Bd4 {[%clk 0:00:59.5]} 32... Kf7 {[%clk 0:00:22.7]} 33.
Nb6 {[%clk 0:00:53.1]} 33... e5 {[%clk 0:00:20.6]} 34. Be3 {[%clk 0:00:52.1]}
34... Ke6 {[%clk 0:00:19.7]} 35. Nc4 {[%clk 0:00:51.6]} 35... Kd5 {[%clk
0:00:18.2]} 36. Kg3 {[%clk 0:00:50.8]} 36... Be7 {[%clk 0:00:15.6]} 37. Kg4
{[%clk 0:00:49.7]} 37... Bc5 {[%clk 0:00:13.9]} 38. Kf5 {[%clk 0:00:44.7]} 38...
Be7 {[%clk 0:00:10.5]} 39. h3 {[%clk 0:00:40.9]} 39... g6+ {[%clk 0:00:10.8]}
40. Kg4 {[%clk 0:00:40.2]} 40... h5+ {[%clk 0:00:10.8]} 41. Kg3 {[%clk
0:00:39.8]} 41... Bf6 {[%clk 0:00:11.1]} 42. Kg2 {[%clk 0:00:38.5]} 42... Be7
{[%clk 0:00:09.8]} 43. Kf1 {[%clk 0:00:38.3]} 43... Bc5 {[%clk 0:00:09.1]} 44.
Ke2 {[%clk 0:00:38]} 44... Bxe3 {[%clk 0:00:08.6]} 45. Kxe3 {[%clk 0:00:33.5]}
45... Nc1 {[%clk 0:00:07.9]} 46. Nd2 {[%clk 0:00:30.1]} 46... Nxa2 {[%clk
0:00:06.6]} 47. Nxe4 {[%clk 0:00:30.1]} 47... Nb4 {[%clk 0:00:06]} 48. Nf6+
{[%clk 0:00:29.3]} 48... Ke6 {[%clk 0:00:05.7]} 49. Ne8 {[%clk 0:00:28.2]} 49...
Nd5+ {[%clk 0:00:04.5]} 50. Ke4 {[%clk 0:00:27.5]} 50... Nf4 {[%clk 0:00:04.6]}
51. h4 {[%clk 0:00:26.7]} 51... Ng2 {[%clk 0:00:04.8]} 52. Nc7+ {[%clk
0:00:25.3]} 52... Kd6 {[%clk 0:00:04.4]} 53. Nxa6 {[%clk 0:00:26.2]} 53... Nxh4
{[%clk 0:00:04.6]} 54. b4 {[%clk 0:00:25.9]} 54... Nf5 {[%clk 0:00:04.4]} 55. b5
{[%clk 0:00:25.4]} 55... Nd4 {[%clk 0:00:02.8]} 56. b6 {[%clk 0:00:23.4]} 56...
g5 {[%clk 0:00:02.4]} 57. b7 {[%clk 0:00:22.6]} 57... Nc6 {[%clk 0:00:02.6]} 58.
b8=Q+ {[%clk 0:00:21.8]} 58... Nxb8 {[%clk 0:00:02.8]} 59. Nxb8 {[%clk
0:00:22.7]} 59... Ke6 {[%clk 0:00:02.2]} 60. Nc6 {[%clk 0:00:22.2]} 60... Kf6
{[%clk 0:00:01.7]} 61. Nxe5 {[%clk 0:00:22.2]} 1-0

[Event "*** SCC Grand Prix: Titled Tuesday Blitz"]
[Site "Chess.com"]
[Date "2020.06.23"]
[Round "3"]
[White "vanyakuba"]
[Black "c63_amg"]
[Result "0-1"]
[WhiteElo "2445"]
[BlackElo "2773"]
[TimeControl "180+1"]
[EndTime "10:29:46 PDT"]
[Termination "c63_amg won by resignation"]

1. e4 {[%clk 0:03:00.9]} 1... c5 {[%clk 0:02:59.2]} 2. c3 {[%clk 0:03:00.4]}
2... e6 {[%clk 0:02:57.5]} 3. d4 {[%clk 0:02:59.5]} 3... d5 {[%clk 0:02:57.6]}
4. e5 {[%clk 0:02:59.5]} 4... Nc6 {[%clk 0:02:56.7]} 5. Nf3 {[%clk 0:02:59.1]}
5... Qb6 {[%clk 0:02:57.3]} 6. Be2 {[%clk 0:02:59.1]} 6... Nh6 {[%clk
0:02:56.7]} 7. O-O {[%clk 0:02:17]} 7... cxd4 {[%clk 0:02:39.8]} 8. cxd4 {[%clk
0:02:10.6]} 8... Nf5 {[%clk 0:02:40.1]} 9. Be3 {[%clk 0:01:32.7]} 9... Qxb2
{[%clk 0:02:32.3]} 10. Nbd2 {[%clk 0:01:32.5]} 10... Be7 {[%clk 0:02:09.1]} 11.
Nb3 {[%clk 0:01:29.6]} 11... Nxe3 {[%clk 0:02:05.1]} 12. fxe3 {[%clk 0:01:29.3]}
12... Qc3 {[%clk 0:02:05.1]} 13. Kf2 {[%clk 0:01:26.3]} 13... Qb4 {[%clk
0:02:01.2]} 14. Rb1 {[%clk 0:01:23.4]} 14... Qa3 {[%clk 0:01:56.1]} 15. Qd2
{[%clk 0:01:13.3]} 15... O-O {[%clk 0:01:50.3]} 16. Rfc1 {[%clk 0:01:12.9]}
16... f6 {[%clk 0:01:43.3]} 17. exf6 {[%clk 0:01:09.8]} 17... Rxf6 {[%clk
0:01:44.2]} 18. Kg1 {[%clk 0:01:09.7]} 18... Qd6 {[%clk 0:01:40]} 19. Nc5 {[%clk
0:01:07.8]} 19... b6 {[%clk 0:01:36.1]} 20. Na6 {[%clk 0:01:07.8]} 20... Bd7
{[%clk 0:01:21.2]} 21. Bb5 {[%clk 0:00:48.8]} 21... Raf8 {[%clk 0:01:14.6]} 22.
Rf1 {[%clk 0:00:43.8]} 22... Bc8 {[%clk 0:01:05.8]} 23. Qe2 {[%clk 0:00:34.7]}
23... Bxa6 {[%clk 0:00:43.9]} 24. Bxa6 {[%clk 0:00:34.1]} 24... e5 {[%clk
0:00:43.2]} 25. Bb5 {[%clk 0:00:12.6]} 25... e4 {[%clk 0:00:37.7]} 26. Nd2
{[%clk 0:00:04.4]} 26... Na5 {[%clk 0:00:30.2]} 27. Rxf6 {[%clk 0:00:03.1]}
27... Bxf6 {[%clk 0:00:28.1]} 28. Rf1 {[%clk 0:00:02.1]} 28... Qb4 {[%clk
0:00:24.5]} 29. Nb1 {[%clk 0:00:01.4]} 29... Bg5 {[%clk 0:00:20.6]} 30. a3
{[%clk 0:00:01.8]} 30... Rxf1+ {[%clk 0:00:19.6]} 31. Kxf1 {[%clk 0:00:02.1]}
31... Qxb1+ {[%clk 0:00:19.1]} 32. Kf2 {[%clk 0:00:02.7]} 32... Qc1 {[%clk
0:00:18.2]} 33. Bd7 {[%clk 0:00:01.6]} 33... Nc4 {[%clk 0:00:17.2]} 34. Be6+
{[%clk 0:00:01.9]} 34... Kh8 {[%clk 0:00:17.1]} 35. Bxd5 {[%clk 0:00:02.8]}
35... Qxe3+ {[%clk 0:00:16]} 36. Qxe3 {[%clk 0:00:03.3]} 36... Nxe3 {[%clk
0:00:16.7]} 37. Bxe4 {[%clk 0:00:03.1]} 37... Nc4 {[%clk 0:00:16.8]} 38. a4
{[%clk 0:00:02.2]} 38... Nd6 {[%clk 0:00:17.1]} 39. Bd5 {[%clk 0:00:02.2]} 39...
Bf6 {[%clk 0:00:18]} 40. Ke3 {[%clk 0:00:02.2]} 40... Nf5+ {[%clk 0:00:18.6]}
41. Ke4 {[%clk 0:00:02.8]} 41... Nxd4 {[%clk 0:00:19.5]} 42. g4 {[%clk
0:00:02.8]} 42... h6 {[%clk 0:00:19.3]} 43. h4 {[%clk 0:00:03.1]} 43... g6
{[%clk 0:00:18.5]} 44. g5 {[%clk 0:00:03.1]} 44... hxg5 {[%clk 0:00:15.5]} 45.
hxg5 {[%clk 0:00:04]} 45... Bg7 {[%clk 0:00:15.6]} 46. Bf7 {[%clk 0:00:04.5]}
46... Kh7 {[%clk 0:00:13.5]} 47. Kd5 {[%clk 0:00:05]} 47... Nf3 {[%clk
0:00:11.3]} 48. Kc6 {[%clk 0:00:04.3]} 48... Nxg5 {[%clk 0:00:11.8]} 49. Be8
{[%clk 0:00:04.1]} 49... Bd4 {[%clk 0:00:12]} 50. Kb7 {[%clk 0:00:04.3]} 50...
a5 {[%clk 0:00:12.4]} 51. Ka6 {[%clk 0:00:04.2]} 51... Bc5 {[%clk 0:00:13]} 52.
Kb5 {[%clk 0:00:04.7]} 52... Kg7 {[%clk 0:00:12.8]} 53. Kc4 {[%clk 0:00:05.2]}
53... Ne4 {[%clk 0:00:13]} 54. Bc6 {[%clk 0:00:03.1]} 54... Nd6+ {[%clk
0:00:13.3]} 55. Kd5 {[%clk 0:00:03.3]} 55... Kf6 {[%clk 0:00:14.2]} 56. Bd7
{[%clk 0:00:01.8]} 56... g5 {[%clk 0:00:14.3]} 57. Kc6 {[%clk 0:00:02.7]} 57...
Nf5 {[%clk 0:00:14.3]} 58. Kb5 {[%clk 0:00:02.3]} 58... g4 {[%clk 0:00:14.4]}
59. Bc6 {[%clk 0:00:03.2]} 59... Nd4+ {[%clk 0:00:13.7]} 60. Ka6 {[%clk
0:00:03.7]} 60... Nxc6 {[%clk 0:00:14.2]} 61. Kb7 {[%clk 0:00:03.9]} 61... g3
{[%clk 0:00:14.6]} 62. Ka6 {[%clk 0:00:04.8]} 62... g2 {[%clk 0:00:15.5]} 0-1

[Event "*** SCC Grand Prix: Titled Tuesday Blitz"]
[Site "Chess.com"]
[Date "2020.06.23"]
[Round "3"]
[White "stanyga"]
[Black "otrov-11"]
[Result "1-0"]
[WhiteElo "2609"]
[BlackElo "2397"]
[TimeControl "180+1"]
[EndTime "10:29:47 PDT"]
[Termination "stanyga won by resignation"]

1. e4 {[%clk 0:02:50.3]} 1... e6 {[%clk 0:02:59.7]} 2. b3 {[%clk 0:02:46.7]}
2... d5 {[%clk 0:02:58.2]} 3. Bb2 {[%clk 0:02:44.6]} 3... dxe4 {[%clk
0:02:53.4]} 4. Nc3 {[%clk 0:02:41.8]} 4... Nf6 {[%clk 0:02:53.7]} 5. g4 {[%clk
0:02:38]} 5... c5 {[%clk 0:02:20.7]} 6. g5 {[%clk 0:02:31.6]} 6... Nd5 {[%clk
0:02:20.7]} 7. Nxe4 {[%clk 0:02:31.6]} 7... Nc6 {[%clk 0:02:20.8]} 8. Nf3 {[%clk
0:02:26.5]} 8... Bd7 {[%clk 0:02:15.2]} 9. d3 {[%clk 0:02:15.3]} 9... Qc7 {[%clk
0:02:04.9]} 10. Qd2 {[%clk 0:02:08.6]} 10... O-O-O {[%clk 0:02:02.6]} 11. O-O-O
{[%clk 0:02:07.4]} 11... Kb8 {[%clk 0:01:58.6]} 12. h4 {[%clk 0:02:06.2]} 12...
Nd4 {[%clk 0:01:45.3]} 13. Nxd4 {[%clk 0:01:55.4]} 13... cxd4 {[%clk 0:01:46.2]}
14. Bxd4 {[%clk 0:01:54.4]} 14... Ba3+ {[%clk 0:01:46.8]} 15. Bb2 {[%clk
0:01:52.2]} 15... Bxb2+ {[%clk 0:01:40.6]} 16. Kxb2 {[%clk 0:01:51.8]} 16... Bc6
{[%clk 0:01:40.6]} 17. Bg2 {[%clk 0:01:41.1]} 17... f5 {[%clk 0:01:30.8]} 18.
gxf6 {[%clk 0:01:40.1]} 18... gxf6 {[%clk 0:01:31.7]} 19. Rhg1 {[%clk
0:01:20.9]} 19... Rhg8 {[%clk 0:01:25.6]} 20. Bf3 {[%clk 0:01:06.2]} 20... f5
{[%clk 0:01:09.2]} 21. Ng3 {[%clk 0:01:03.2]} 21... Qe7 {[%clk 0:01:01.3]} 22.
Bxd5 {[%clk 0:00:54.5]} 22... Bxd5 {[%clk 0:00:57.4]} 23. Qf4+ {[%clk
0:00:49.4]} 23... Ka8 {[%clk 0:00:57.1]} 24. Qe5 {[%clk 0:00:49.6]} 24... Qxh4
{[%clk 0:00:48]} 25. Rde1 {[%clk 0:00:33.2]} 25... Qh2 {[%clk 0:00:33.7]} 26.
Rgf1 {[%clk 0:00:14.1]} 26... h5 {[%clk 0:00:31.3]} 27. Qe3 {[%clk 0:00:10.8]}
27... h4 {[%clk 0:00:29.2]} 28. Nh5 {[%clk 0:00:10.8]} 28... Qc7 {[%clk
0:00:26.8]} 29. Nf4 {[%clk 0:00:10.6]} 29... Qg7+ {[%clk 0:00:23.4]} 30. c3
{[%clk 0:00:09.6]} 30... Rge8 {[%clk 0:00:13.2]} 31. d4 {[%clk 0:00:09.2]} 31...
Qf6 {[%clk 0:00:07]} 32. Rg1 {[%clk 0:00:08.2]} 32... Be4 {[%clk 0:00:04.8]} 33.
Rg6 {[%clk 0:00:07.5]} 33... Qf7 {[%clk 0:00:02.7]} 34. f3 {[%clk 0:00:07.9]}
34... Bc6 {[%clk 0:00:01.6]} 35. Reg1 {[%clk 0:00:04.3]} 35... Rg8 {[%clk
0:00:01.4]} 36. Rxg8 {[%clk 0:00:04]} 36... Rxg8 {[%clk 0:00:02.3]} 37. Rxg8+
{[%clk 0:00:03.8]} 37... Qxg8 {[%clk 0:00:03.1]} 38. Nxe6 {[%clk 0:00:04.7]}
38... Qe8 {[%clk 0:00:02.9]} 39. Nc7+ {[%clk 0:00:04.3]} 39... Kb8 {[%clk
0:00:03.5]} 40. Nxe8 {[%clk 0:00:04.6]} 40... h3 {[%clk 0:00:02.8]} 41. Qe5+
{[%clk 0:00:04.7]} 1-0